[Event "*** Titled Tuesday 3|2 Blitz"]
[Site "Chess.com"]
[Date "2015.03.03"]
[Round "4"]
[White "Aragon"]
[Black "Bab3s"]
[Result "1-0"]
[WhiteElo "1970"]
[BlackElo "2046"]
[TimeControl "180+2"]
[EndTime "11:50:24 PST"]
[Termination "Aragon won by resignation"]

1. e4 {[%clk 0:03:00]} 1... e5 {[%clk 0:02:58.7]} 2. d4 {[%clk 0:03:00.3]} 2...
exd4 {[%clk 0:02:59.5]} 3. c3 {[%clk 0:03:01]} 3... dxc3 {[%clk 0:02:59.8]} 4.
Bc4 {[%clk 0:03:01.8]} 4... Nc6 {[%clk 0:02:48.9]} 5. Nf3 {[%clk 0:02:59.7]}
5... d6 {[%clk 0:02:48.5]} 6. Nxc3 {[%clk 0:02:59.4]} 6... Be7 {[%clk
0:02:43.2]} 7. Qb3 {[%clk 0:02:56.4]} 7... Na5 {[%clk 0:02:18.6]} 8. Bxf7+
{[%clk 0:02:56]} 8... Kf8 {[%clk 0:02:19.3]} 9. Qa4 {[%clk 0:02:56.6]} 9... Kxf7
{[%clk 0:02:12.9]} 10. Qxa5 {[%clk 0:02:54.4]} 10... Nf6 {[%clk 0:02:02.2]} 11.
Ng5+ {[%clk 0:02:48.5]} 11... Kg8 {[%clk 0:01:48.1]} 12. Qa4 {[%clk 0:02:34.6]}
12... h6 {[%clk 0:01:45.5]} 13. Qb3+ {[%clk 0:02:33.9]} 13... d5 {[%clk
0:01:46]} 14. exd5 {[%clk 0:02:21.8]} 14... Bd6 {[%clk 0:01:26.6]} 15. Ne6
{[%clk 0:02:12.1]} 15... Qe8 {[%clk 0:01:21.6]} 16. Be3 {[%clk 0:01:57.3]} 16...
Qh5 {[%clk 0:01:02.2]} 17. Nf4 {[%clk 0:01:31.7]} 17... Qf5 {[%clk 0:00:48.7]}
18. Nfe2 {[%clk 0:01:23.4]} 18... Kh7 {[%clk 0:00:40.6]} 19. O-O-O {[%clk
0:01:15.2]} 19... a5 {[%clk 0:00:40.8]} 20. Nd4 {[%clk 0:01:11.2]} 20... Qg6
{[%clk 0:00:35]} 21. Ndb5 {[%clk 0:01:02.9]} 21... Bf5 {[%clk 0:00:30.6]} 22.
Nd4 {[%clk 0:00:54.9]} 22... a4 {[%clk 0:00:28.3]} 23. Qc4 {[%clk 0:00:54.9]}
23... a3 {[%clk 0:00:23.4]} 24. b3 {[%clk 0:00:51.3]} 24... Ra5 {[%clk
0:00:19.1]} 25. Nxf5 {[%clk 0:00:50.8]} 25... Qxf5 {[%clk 0:00:21]} 26. Qd3
{[%clk 0:00:51.6]} 26... Qxd3 {[%clk 0:00:19.7]} 27. Rxd3 {[%clk 0:00:53.5]}
27... Be5 {[%clk 0:00:18.5]} 28. Rhd1 {[%clk 0:00:52.9]} 28... Rd8 {[%clk
0:00:18.9]} 29. Kc2 {[%clk 0:00:50.7]} 29... Bxc3 {[%clk 0:00:16.8]} 30. Rxc3
{[%clk 0:00:44.7]} 30... Nxd5 {[%clk 0:00:11.6]} 31. Rc4 {[%clk 0:00:41.8]}
31... c6 {[%clk 0:00:09.8]} 32. b4 {[%clk 0:00:38.9]} 32... Raa8 {[%clk
0:00:07.1]} 33. Rcd4 {[%clk 0:00:37.4]} 33... Re8 {[%clk 0:00:06.5]} 34. R1d3
{[%clk 0:00:35.4]} 34... Re6 {[%clk 0:00:06.8]} 35. Kb3 {[%clk 0:00:35.9]} 35...
b5 {[%clk 0:00:05.1]} 36. Rxd5 {[%clk 0:00:35]} 36... cxd5 {[%clk 0:00:05.6]}
37. Rxd5 {[%clk 0:00:36.2]} 37... Rc8 {[%clk 0:00:05]} 38. Rxb5 {[%clk
0:00:34.9]} 38... Rec6 {[%clk 0:00:04.8]} 39. Rc5 {[%clk 0:00:34.1]} 39... Rxc5
{[%clk 0:00:05.1]} 40. Bxc5 {[%clk 0:00:34.1]} 40... Kg6 {[%clk 0:00:07]} 41.
Kxa3 {[%clk 0:00:34.7]} 41... Kf5 {[%clk 0:00:08.9]} 42. Kb3 {[%clk 0:00:35.3]}
42... Ke4 {[%clk 0:00:10.2]} 43. a4 {[%clk 0:00:33.2]} 43... Kd5 {[%clk
0:00:11.4]} 44. a5 {[%clk 0:00:32.7]} 44... Kc6 {[%clk 0:00:11.2]} 45. a6 {[%clk
0:00:31.9]} 45... Re8 {[%clk 0:00:09.8]} 46. Kc4 {[%clk 0:00:28.7]} 46... Re4+
{[%clk 0:00:10]} 47. Bd4 {[%clk 0:00:30]} 47... Re2 {[%clk 0:00:08.8]} 48. b5+
{[%clk 0:00:30.8]} 48... Kc7 {[%clk 0:00:09.8]} 49. b6+ {[%clk 0:00:30.7]} 49...
Kb8 {[%clk 0:00:09.8]} 50. Kd5 {[%clk 0:00:28.3]} 50... Ra2 {[%clk 0:00:09.6]}
51. Be5+ {[%clk 0:00:27.7]} 1-0

[Event "*** Titled Tuesday 3|2 Blitz"]
[Site "Chess.com"]
[Date "2015.03.03"]
[Round "4"]
[White "AndreyOstrovskiy"]
[Black "asms9699"]
[Result "1/2-1/2"]
[WhiteElo "2349"]
[BlackElo "2236"]
[TimeControl "180+2"]
[EndTime "11:50:33 PST"]
[Termination "Game drawn - insufficient material"]

1. e4 {[%clk 0:03:00]} 1... e6 {[%clk 0:02:45.5]} 2. d4 {[%clk 0:03:00.4]} 2...
d5 {[%clk 0:02:45.5]} 3. Nc3 {[%clk 0:03:00.9]} 3... Nf6 {[%clk 0:02:46.1]} 4.
e5 {[%clk 0:03:01.8]} 4... Nfd7 {[%clk 0:02:46]} 5. f4 {[%clk 0:03:03.4]} 5...
c5 {[%clk 0:02:47.2]} 6. Nf3 {[%clk 0:03:05]} 6... Nc6 {[%clk 0:02:48.2]} 7. Be3
{[%clk 0:03:06.2]} 7... a6 {[%clk 0:02:49.4]} 8. Qd2 {[%clk 0:03:05.4]} 8... b5
{[%clk 0:02:50.6]} 9. dxc5 {[%clk 0:03:06.5]} 9... Bxc5 {[%clk 0:02:51]} 10.
Bxc5 {[%clk 0:03:07.7]} 10... Nxc5 {[%clk 0:02:52.9]} 11. Qf2 {[%clk 0:03:09.2]}
11... Qb6 {[%clk 0:02:48.4]} 12. Bd3 {[%clk 0:03:10.2]} 12... b4 {[%clk
0:02:48.4]} 13. Ne2 {[%clk 0:03:10.4]} 13... a5 {[%clk 0:02:45.8]} 14. O-O
{[%clk 0:03:09.2]} 14... Ba6 {[%clk 0:02:45.6]} 15. Rfd1 {[%clk 0:02:57.1]}
15... O-O {[%clk 0:02:44]} 16. Rac1 {[%clk 0:02:52.3]} 16... Ne7 {[%clk
0:02:16.7]} 17. Kh1 {[%clk 0:02:39.1]} 17... Na4 {[%clk 0:02:09.6]} 18. Qxb6
{[%clk 0:02:38.7]} 18... Nxb6 {[%clk 0:02:11.5]} 19. Ned4 {[%clk 0:02:32.4]}
19... Rfc8 {[%clk 0:02:07.6]} 20. Kg1 {[%clk 0:02:29.5]} 20... Na4 {[%clk
0:02:05.3]} 21. Rb1 {[%clk 0:02:28.4]} 21... Nc6 {[%clk 0:02:01.6]} 22. Kf2
{[%clk 0:02:26.8]} 22... Rc7 {[%clk 0:01:56.3]} 23. Ke3 {[%clk 0:02:26.6]} 23...
Bxd3 {[%clk 0:01:55.8]} 24. cxd3 {[%clk 0:02:27.9]} 24... Rac8 {[%clk
0:01:55.3]} 25. Nb3 {[%clk 0:02:24.3]} 25... Ne7 {[%clk 0:01:42.6]} 26. Nfd4
{[%clk 0:02:20.9]} 26... Ra8 {[%clk 0:01:35.2]} 27. g4 {[%clk 0:02:15.1]} 27...
g6 {[%clk 0:01:27.2]} 28. Rd2 {[%clk 0:02:13.2]} 28... Kf8 {[%clk 0:01:21.1]}
29. Rc1 {[%clk 0:02:00.2]} 29... Rxc1 {[%clk 0:01:21]} 30. Nxc1 {[%clk
0:02:01.2]} 30... Nb6 {[%clk 0:01:16.2]} 31. Rc2 {[%clk 0:01:55.9]} 31... Rc8
{[%clk 0:01:14.7]} 32. Ncb3 {[%clk 0:01:48.8]} 32... Rxc2 {[%clk 0:01:11.1]} 33.
Nxc2 {[%clk 0:01:49.5]} 33... Nc6 {[%clk 0:01:09.7]} 34. Ncd4 {[%clk 0:01:49.8]}
34... Nxd4 {[%clk 0:01:09]} 35. Kxd4 {[%clk 0:01:50.9]} 35... Na4 {[%clk
0:01:10]} 36. Nxa5 {[%clk 0:01:47.4]} 36... Nxb2 {[%clk 0:01:11]} 37. Nc6 {[%clk
0:01:44.5]} 37... h5 {[%clk 0:01:09.9]} 38. g5 {[%clk 0:01:35.4]} 38... h4
{[%clk 0:01:08.2]} 39. Nxb4 {[%clk 0:01:35.1]} 39... h3 {[%clk 0:01:09.4]} 40.
Ke3 {[%clk 0:01:31.1]} 40... Nd1+ {[%clk 0:01:09.8]} 41. Kf3 {[%clk 0:01:31.1]}
41... Nc3 {[%clk 0:01:07]} 42. Kg4 {[%clk 0:01:24.1]} 42... Ke8 {[%clk
0:01:03.4]} 43. Kxh3 {[%clk 0:01:21.9]} 43... Kd7 {[%clk 0:01:04.9]} 44. Kg4
{[%clk 0:01:22.8]} 44... Kc7 {[%clk 0:01:06.2]} 45. h4 {[%clk 0:01:20.4]} 45...
Kb6 {[%clk 0:01:07.3]} 46. h5 {[%clk 0:01:18.9]} 46... gxh5+ {[%clk 0:01:08]}
47. Kxh5 {[%clk 0:01:20.4]} 47... Kb5 {[%clk 0:01:09.6]} 48. a3 {[%clk
0:01:20.4]} 48... Ne2 {[%clk 0:01:05.5]} 49. Kh6 {[%clk 0:01:00.7]} 49... Nxf4
{[%clk 0:01:05.4]} 50. Kg7 {[%clk 0:01:01.8]} 50... Nh3 {[%clk 0:00:59.3]} 51.
Kf6 {[%clk 0:00:42]} 51... Ka4 {[%clk 0:00:56.8]} 52. g6 {[%clk 0:00:33.9]}
52... fxg6 {[%clk 0:00:57.8]} 53. Kxe6 {[%clk 0:00:35.2]} 53... Nf4+ {[%clk
0:00:58.1]} 54. Kf6 {[%clk 0:00:34.7]} 54... Kxa3 {[%clk 0:00:56.8]} 55. Nc6
{[%clk 0:00:30.8]} 55... d4 {[%clk 0:00:49]} 56. Nxd4 {[%clk 0:00:23.2]} 56...
Nxd3 {[%clk 0:00:49.6]} 57. e6 {[%clk 0:00:21.2]} 57... Nf4 {[%clk 0:00:50.6]}
58. e7 {[%clk 0:00:16.5]} 58... Nd5+ {[%clk 0:00:51.4]} 59. Kf7 {[%clk
0:00:16.4]} 59... Nxe7 {[%clk 0:00:52.4]} 60. Kxe7 {[%clk 0:00:17.9]} 60... g5
{[%clk 0:00:53.8]} 61. Kf6 {[%clk 0:00:18.2]} 61... g4 {[%clk 0:00:55.1]} 62.
Nf5 {[%clk 0:00:19.3]} 62... Kb4 {[%clk 0:00:55.9]} 63. Kg5 {[%clk 0:00:20.6]}
63... Kc5 {[%clk 0:00:57.8]} 64. Kxg4 {[%clk 0:00:21.7]} 1/2-1/2

[Event "*** Titled Tuesday 3|2 Blitz"]
[Site "Chess.com"]
[Date "2015.03.03"]
[Round "4"]
[White "KyronGriffith"]
[Black "lukas_111111"]
[Result "0-1"]
[WhiteElo "2159"]
[BlackElo "2283"]
[TimeControl "180+2"]
[EndTime "11:51:37 PST"]
[Termination "lukas_111111 won by resignation"]

1. e4 {[%clk 0:03:00]} 1... c5 {[%clk 0:02:58]} 2. Nf3 {[%clk 0:02:59.9]} 2...
e6 {[%clk 0:02:59.1]} 3. d4 {[%clk 0:02:59.4]} 3... cxd4 {[%clk 0:03:00.1]} 4.
Nxd4 {[%clk 0:03:01.3]} 4... a6 {[%clk 0:03:01.2]} 5. Nc3 {[%clk 0:03:01.3]}
5... Qc7 {[%clk 0:02:58.6]} 6. Be2 {[%clk 0:03:01]} 6... Nc6 {[%clk 0:02:59.3]}
7. Be3 {[%clk 0:03:00.2]} 7... Nf6 {[%clk 0:03:00]} 8. O-O {[%clk 0:02:58.8]}
8... Be7 {[%clk 0:03:01.1]} 9. a4 {[%clk 0:02:59.3]} 9... O-O {[%clk 0:03:00.4]}
10. f4 {[%clk 0:02:54]} 10... d6 {[%clk 0:03:01.4]} 11. Kh1 {[%clk 0:02:54.5]}
11... Re8 {[%clk 0:02:59.6]} 12. Nb3 {[%clk 0:02:48.7]} 12... b6 {[%clk
0:02:47.8]} 13. Bf3 {[%clk 0:02:49.5]} 13... Bb7 {[%clk 0:02:48.5]} 14. g4
{[%clk 0:02:46.2]} 14... Na5 {[%clk 0:02:40.2]} 15. Nxa5 {[%clk 0:02:42.3]}
15... bxa5 {[%clk 0:02:41.3]} 16. g5 {[%clk 0:02:41.4]} 16... Nd7 {[%clk
0:02:42.2]} 17. Bg2 {[%clk 0:02:38.2]} 17... Rab8 {[%clk 0:02:33.5]} 18. Qh5
{[%clk 0:02:28.6]} 18... g6 {[%clk 0:02:33.2]} 19. Qh6 {[%clk 0:02:28.2]} 19...
Bf8 {[%clk 0:02:33.5]} 20. Qh4 {[%clk 0:02:28.7]} 20... Bg7 {[%clk 0:02:34.3]}
21. Ra3 {[%clk 0:02:04.8]} 21... Ba8 {[%clk 0:02:15.6]} 22. Bc1 {[%clk 0:01:37]}
22... Rb4 {[%clk 0:01:56.4]} 23. Rf3 {[%clk 0:01:19.1]} 23... Nf8 {[%clk
0:01:48.9]} 24. Qe1 {[%clk 0:00:53]} 24... Reb8 {[%clk 0:01:32.3]} 25. Rd3
{[%clk 0:00:51.9]} 25... Nd7 {[%clk 0:01:23.2]} 26. Rh3 {[%clk 0:00:49.1]} 26...
Rc4 {[%clk 0:01:16.2]} 27. Rb3 {[%clk 0:00:46.1]} 27... Rbb4 {[%clk 0:01:10.1]}
28. f5 {[%clk 0:00:34]} 28... gxf5 {[%clk 0:00:36.6]} 29. exf5 {[%clk
0:00:35.9]} 29... Bxg2+ {[%clk 0:00:36.8]} 30. Kxg2 {[%clk 0:00:36.6]} 30...
Rg4+ {[%clk 0:00:37.7]} 31. Rg3 {[%clk 0:00:37.3]} 31... Qb7+ {[%clk 0:00:31.8]}
32. Kg1 {[%clk 0:00:31.6]} 32... Rxg3+ {[%clk 0:00:17.2]} 33. hxg3 {[%clk
0:00:27.7]} 33... Rxb3 {[%clk 0:00:17.3]} 34. cxb3 {[%clk 0:00:26.9]} 34... Qxb3
{[%clk 0:00:17.1]} 35. Qe4 {[%clk 0:00:18]} 35... exf5 {[%clk 0:00:13.8]} 36.
Qxf5 {[%clk 0:00:14.8]} 36... Qe6 {[%clk 0:00:13.6]} 37. Qxe6 {[%clk 0:00:12.8]}
37... fxe6 {[%clk 0:00:13.9]} 38. Ne4 {[%clk 0:00:14.7]} 38... Be5 {[%clk
0:00:14.3]} 39. Kf2 {[%clk 0:00:15.4]} 39... Nb6 {[%clk 0:00:15.1]} 40. b3
{[%clk 0:00:16.5]} 40... d5 {[%clk 0:00:15.5]} 41. Nc5 {[%clk 0:00:17]} 41...
Bd4+ {[%clk 0:00:13.4]} 42. Be3 {[%clk 0:00:18.6]} 42... Bxc5 {[%clk 0:00:12.6]}
43. Bxc5 {[%clk 0:00:19.4]} 43... Nd7 {[%clk 0:00:14.1]} 44. Bd6 {[%clk
0:00:19.9]} 44... Kf7 {[%clk 0:00:14.5]} 45. Bc7 {[%clk 0:00:19.8]} 45... Nc5
{[%clk 0:00:15.5]} 46. Bxa5 {[%clk 0:00:20.5]} 46... Nxb3 {[%clk 0:00:16.8]} 47.
Bc3 {[%clk 0:00:21.1]} 47... Kg6 {[%clk 0:00:17.6]} 48. Bf6 {[%clk 0:00:21.4]}
48... Nc5 {[%clk 0:00:18.1]} 49. Be7 {[%clk 0:00:21.7]} 49... Nxa4 {[%clk
0:00:18.5]} 50. Ke3 {[%clk 0:00:22.2]} 50... e5 {[%clk 0:00:17.4]} 51. Bf6
{[%clk 0:00:21.7]} 51... Kf5 {[%clk 0:00:18.5]} 52. g4+ {[%clk 0:00:21.5]} 52...
Ke6 {[%clk 0:00:19.6]} 53. Bg7 {[%clk 0:00:21.6]} 53... Nb6 {[%clk 0:00:20]} 54.
Bf8 {[%clk 0:00:21.5]} 54... a5 {[%clk 0:00:20.8]} 55. Kd3 {[%clk 0:00:21.3]}
55... a4 {[%clk 0:00:21.3]} 56. Bc5 {[%clk 0:00:22.2]} 56... Nc4 {[%clk
0:00:20.5]} 57. Kc3 {[%clk 0:00:22.5]} 57... a3 {[%clk 0:00:19.5]} 58. Kb3
{[%clk 0:00:22.4]} 58... e4 {[%clk 0:00:20.8]} 59. Bb4 {[%clk 0:00:23.6]} 59...
e3 {[%clk 0:00:20.2]} 60. Be1 {[%clk 0:00:23.5]} 60... Ke5 {[%clk 0:00:19.2]}
61. Kb4 {[%clk 0:00:13.8]} 61... a2 {[%clk 0:00:18.7]} 62. Bc3+ {[%clk
0:00:13.7]} 62... d4 {[%clk 0:00:19.4]} 0-1

[Event "*** Titled Tuesday 3|2 Blitz"]
[Site "Chess.com"]
[Date "2015.03.03"]
[Round "4"]
[White "michaelk123"]
[Black "FrankieJay"]
[Result "1/2-1/2"]
[WhiteElo "1919"]
[BlackElo "2196"]
[TimeControl "180+2"]
[EndTime "11:52:12 PST"]
[Termination "Game drawn by agreement"]

1. e4 {[%clk 0:03:00]} 1... c6 {[%clk 0:02:57.6]} 2. d4 {[%clk 0:03:00.6]} 2...
d5 {[%clk 0:02:59.1]} 3. exd5 {[%clk 0:03:02.4]} 3... cxd5 {[%clk 0:03:00]} 4.
c4 {[%clk 0:03:04]} 4... Nf6 {[%clk 0:03:01.4]} 5. Nc3 {[%clk 0:03:04.4]} 5...
Nc6 {[%clk 0:03:03]} 6. Nf3 {[%clk 0:03:01.8]} 6... Bg4 {[%clk 0:03:03.9]} 7.
cxd5 {[%clk 0:02:42.4]} 7... Nxd5 {[%clk 0:03:03.5]} 8. Be2 {[%clk 0:02:43.7]}
8... e6 {[%clk 0:03:02.5]} 9. h3 {[%clk 0:02:42.9]} 9... Bh5 {[%clk 0:03:03.3]}
10. O-O {[%clk 0:02:43.1]} 10... Be7 {[%clk 0:03:04.3]} 11. a3 {[%clk
0:02:40.4]} 11... O-O {[%clk 0:03:05]} 12. Re1 {[%clk 0:02:41.4]} 12... Bf6
{[%clk 0:03:03.3]} 13. Be3 {[%clk 0:02:20]} 13... Rc8 {[%clk 0:02:57.6]} 14. Rc1
{[%clk 0:02:17.7]} 14... a6 {[%clk 0:02:44.7]} 15. Ne4 {[%clk 0:02:05.1]} 15...
Nce7 {[%clk 0:02:29.3]} 16. Nc5 {[%clk 0:01:44.4]} 16... Rc7 {[%clk 0:02:10.8]}
17. Ne5 {[%clk 0:01:25.4]} 17... Bxe2 {[%clk 0:02:09.5]} 18. Qxe2 {[%clk
0:01:27]} 18... Nf5 {[%clk 0:01:39.8]} 19. g4 {[%clk 0:01:13.1]} 19... Nfxe3
{[%clk 0:01:40.5]} 20. fxe3 {[%clk 0:01:10.8]} 20... Bg5 {[%clk 0:01:42]} 21.
Qf3 {[%clk 0:01:06.1]} 21... Nxe3 {[%clk 0:01:22.4]} 22. h4 {[%clk 0:00:46.3]}
22... Qxd4 {[%clk 0:00:58.8]} 23. Qe4 {[%clk 0:00:36.7]} 23... Qxe4 {[%clk
0:00:35.9]} 24. Nxe4 {[%clk 0:00:37.8]} 24... Rxc1 {[%clk 0:00:37.3]} 25. Rxc1
{[%clk 0:00:39.3]} 25... Bxh4 {[%clk 0:00:38.6]} 26. g5 {[%clk 0:00:24.5]} 26...
f6 {[%clk 0:00:31.3]} 27. gxf6 {[%clk 0:00:21.2]} 27... Bxf6 {[%clk 0:00:31.9]}
28. Nxf6+ {[%clk 0:00:18.9]} 28... gxf6 {[%clk 0:00:33.8]} 29. Nd7 {[%clk
0:00:18.8]} 29... Rf7 {[%clk 0:00:29.9]} 30. Rc8+ {[%clk 0:00:15.2]} 30... Kg7
{[%clk 0:00:30.5]} 31. Nc5 {[%clk 0:00:17.1]} 31... Re7 {[%clk 0:00:30.5]} 32.
Kf2 {[%clk 0:00:14.4]} 32... Nc4 {[%clk 0:00:26.3]} 33. Nxe6+ {[%clk 0:00:10.5]}
33... Rxe6 {[%clk 0:00:28.2]} 34. Rxc4 {[%clk 0:00:11.9]} 34... Rb6 {[%clk
0:00:25]} 35. Rc7+ {[%clk 0:00:09.6]} 35... Kg6 {[%clk 0:00:26.2]} 36. b4 {[%clk
0:00:11.1]} 36... h5 {[%clk 0:00:26.8]} 37. Kf3 {[%clk 0:00:07.6]} 37... Rb5
{[%clk 0:00:26.2]} 38. Kf4 {[%clk 0:00:06.3]} 38... b6 {[%clk 0:00:25.7]} 39.
Rc6 {[%clk 0:00:07]} 39... a5 {[%clk 0:00:26]} 40. bxa5 {[%clk 0:00:07.1]} 40...
Rxa5 {[%clk 0:00:26.3]} 41. Rxb6 {[%clk 0:00:08]} 41... Ra4+ {[%clk 0:00:27.9]}
42. Kg3 {[%clk 0:00:08.1]} 42... Rxa3+ {[%clk 0:00:29.8]} 43. Kf4 {[%clk
0:00:09.4]} 43... Ra4+ {[%clk 0:00:31.5]} 44. Kf3 {[%clk 0:00:09.2]} 44... Ra5
{[%clk 0:00:32.4]} 45. Rb8 {[%clk 0:00:10.3]} 45... Kf5 {[%clk 0:00:33.2]} 46.
Rh8 {[%clk 0:00:11.1]} 46... Ra3+ {[%clk 0:00:34.6]} 47. Kg2 {[%clk 0:00:11.4]}
47... Kg4 {[%clk 0:00:33.9]} 48. Rg8+ {[%clk 0:00:12.8]} 48... Kh4 {[%clk
0:00:34.7]} 49. Kf2 {[%clk 0:00:13.8]} 49... Ra5 {[%clk 0:00:35.5]} 50. Rg6
{[%clk 0:00:14.7]} 50... Rf5+ {[%clk 0:00:36.8]} 51. Kg2 {[%clk 0:00:15.5]}
51... Rf4 {[%clk 0:00:37.7]} 52. Rh6 {[%clk 0:00:15.2]} 52... Kg5 {[%clk
0:00:38.2]} 53. Rh8 {[%clk 0:00:15.8]} 53... f5 {[%clk 0:00:37.5]} 54. Rg8+
{[%clk 0:00:16.4]} 54... Kh4 {[%clk 0:00:39.2]} 55. Rh8 {[%clk 0:00:16.7]} 55...
Ra4 {[%clk 0:00:38.8]} 56. Kf3 {[%clk 0:00:17.5]} 56... Rg4 {[%clk 0:00:30.3]}
57. Rh7 {[%clk 0:00:18]} 57... Rg6 {[%clk 0:00:29.9]} 58. Kf4 {[%clk 0:00:17]}
58... Rf6 {[%clk 0:00:30.2]} 59. Rh8 {[%clk 0:00:17.3]} 59... Rf7 {[%clk
0:00:30.6]} 60. Rh6 {[%clk 0:00:17.9]} 60... Rf8 {[%clk 0:00:31.4]} 61. Rh7
{[%clk 0:00:19]} 61... Rf6 {[%clk 0:00:32.1]} 62. Rh8 {[%clk 0:00:20]} 62... Rg6
{[%clk 0:00:31.6]} 63. Kxf5 {[%clk 0:00:19.3]} 63... Rg5+ {[%clk 0:00:33]} 64.
Kf4 {[%clk 0:00:20.5]} 64... Rg4+ {[%clk 0:00:34.5]} 65. Kf3 {[%clk 0:00:21.8]}
65... Ra4 {[%clk 0:00:35.1]} 66. Kg2 {[%clk 0:00:22.5]} 66... Ra2+ {[%clk
0:00:36.1]} 67. Kg1 {[%clk 0:00:22.8]} 67... Kg4 {[%clk 0:00:36.7]} 68. Rg8+
{[%clk 0:00:23.9]} 68... Kh3 {[%clk 0:00:38.1]} 69. Kh1 {[%clk 0:00:24.5]} 69...
Ra1+ {[%clk 0:00:33.9]} 70. Rg1 {[%clk 0:00:25.8]} 70... Ra2 {[%clk 0:00:35.8]}
71. Rb1 {[%clk 0:00:26.6]} 71... Ra3 {[%clk 0:00:36.3]} 72. Kg1 {[%clk
0:00:25.8]} 72... h4 {[%clk 0:00:37.3]} 73. Kh1 {[%clk 0:00:27.2]} 73... Rg3
{[%clk 0:00:37.2]} 74. Ra1 {[%clk 0:00:27.3]} 74... Rc3 {[%clk 0:00:37]} 75. Rb1
{[%clk 0:00:28.4]} 75... Kg3 {[%clk 0:00:38.4]} 76. Ra1 {[%clk 0:00:29]} 76...
h3 {[%clk 0:00:38.5]} 77. Rg1+ {[%clk 0:00:29.6]} 77... Kh4 {[%clk 0:00:39.6]}
78. Ra1 {[%clk 0:00:29.6]} 78... Rf3 {[%clk 0:00:38.7]} 79. Rb1 {[%clk
0:00:29.9]} 79... Kg3 {[%clk 0:00:38.5]} 80. Rg1+ {[%clk 0:00:28.2]} 80... Kf2
{[%clk 0:00:39.8]} 81. Ra1 {[%clk 0:00:28.9]} 81... Re3 {[%clk 0:00:40.6]} 82.
Kh2 {[%clk 0:00:28.7]} 82... Kf3 {[%clk 0:00:40.6]} 1/2-1/2